fUST/lending_fUST_20250911
["ID","MTS","AMOUNT","RATE_DAILY","PERIOD"]
[384829208,1757575894078,-481.7903807,0.00013697,2]
[384829210,1757575894173,-211.15187198,0.00013697,2]
[384829212,1757575894259,-500.0,0.00013697,2]
[384829214,1757575894344,-500.0,0.00013697,2]
[384829216,1757575894450,-500.0,0.00013697,2]
[384829218,1757575894532,-500.0,0.00013697,2]
[384829220,1757575894635,-500.0,0.00013697,2]
[384829222,1757575894722,-500.0,0.00013697,2]
[384829224,1757575894810,-500.0,0.00013697,2]
[384829226,1757575894898,-500.0,0.00013697,2]
[384829228,1757575894984,-114.12549464,0.00013697,2]
[384829267,1757575898086,158.042451,0.00024,30]
[384829314,1757575901899,444.813649,0.00024,30]
[384829343,1757575904240,-2541.39731741,0.0001356,2]
[384829345,1757575904329,-385.87450536,0.00013697,2]
[384829347,1757575904425,-500.0,0.00013697,2]
[384829349,1757575904510,-500.0,0.00013697,2]
[384829351,1757575904596,-500.0,0.00013697,2]
[384829353,1757575904680,-500.0,0.00013697,2]
[384829361,1757575905241,1000.0,0.00018594,20]
[384829366,1757575921929,1000.0,0.00018594,20]
[384829367,1757575934154,-201.87321911,0.00013424,2]
[384829368,1757575934235,-204.10530951,0.00013597,2]
[384829369,1757575934316,-1200.0,0.00013696,2]
[384829370,1757575934403,-500.0,0.00013697,2]
[384829371,1757575934485,-500.0,0.00013697,2]
[384829372,1757575934567,-500.0,0.00013697,2]
[384829373,1757575934650,-500.0,0.00013697,2]
[384829374,1757575934731,-500.0,0.00013697,2]
[384829376,1757575934824,-500.0,0.00013697,2]
[384829377,1757575934914,-288.05294276,0.00013697,2]
[384829378,1757575944123,-211.94705724,0.00013697,2]
[384829379,1757575944205,-500.0,0.00013697,2]
[384829380,1757575944304,-500.0,0.00013697,2]
[384829381,1757575944396,-500.0,0.00013697,2]
[384829382,1757575944509,-500.0,0.00013697,2]
[384829383,1757575944627,-421.64972678,0.00013697,2]
[384829384,1757575944716,-500.0,0.00013697,2]
[384829385,1757575944806,-500.0,0.00013697,2]
[384829386,1757575944903,-500.0,0.00013697,2]
[384829387,1757575944999,-312.77237701,0.00013697,2]
[384829388,1757575945098,-500.0,0.00013697,2]
[384829412,1757575945568,-500.0,0.00013697,2]
[384829424,1757575945675,-500.0,0.00013697,2]
[384829433,1757575945757,-459.44379037,0.00013697,2]
[384829443,1757575945840,-500.0,0.00013697,2]
[384829453,1757575945923,-339.84092591,0.00013697,2]
[384829463,1757575946002,-480.0,0.00013698,2]
[384829464,1757575946083,-480.0,0.00013698,2]
[384829465,1757575946164,-480.0,0.00013698,2]
[384829469,1757575946242,-480.0,0.00013698,2]
[384829478,1757575946323,-480.0,0.00013698,2]
[384829620,1757575954113,-1451.63,0.00013698,2]
[384829621,1757575954199,-480.0,0.00013698,2]
[384829622,1757575954284,-480.0,0.00013698,2]
[384829623,1757575954369,-480.0,0.00013698,2]
[384829624,1757575954451,-480.0,0.00013698,2]
[384829625,1757575954531,-480.0,0.00013698,2]
[384829626,1757575954616,-480.0,0.00013698,2]
[384829627,1757575954695,-257.19057976,0.00013698,2]
[384829628,1757575954777,-342.36884048,0.00013698,2]
[384829630,1757576079266,-300.0,0.00013697,2]
[384829631,1757576079348,-500.0,0.00013697,2]
[384829632,1757576079433,-500.0,0.00013697,2]
[384829633,1757576079514,-500.0,0.00013697,2]
[384829634,1757576079606,-500.0,0.00013697,2]
[384829635,1757576079702,-500.0,0.00013697,2]
[384829636,1757576079796,-500.0,0.00013697,2]
[384829637,1757576079891,-411.65266797,0.00013697,2]
[384829638,1757576079988,-551.36184329,0.00013697,2]
[384829639,1757576080074,-500.0,0.00013697,2]
[384829640,1757576109341,-300.0,0.00013696,2]
[384829641,1757576109444,-1200.0,0.00013696,2]
[384829642,1757576109532,-500.0,0.00013697,2]
[384829643,1757576109619,-500.0,0.00013697,2]
[384829644,1757576109703,-247.05466347,0.00013697,2]
[384829645,1757576109792,-500.0,0.00013697,2]
[384829646,1757576109880,-500.0,0.00013697,2]
[384829647,1757576109969,-500.0,0.00013697,2]
[384829648,1757576110057,-500.0,0.00013697,2]
[384829649,1757576110144,-5.90067306,0.00013697,2]
[384829652,1757576223591,3310.91,0.00024,30]
[384829653,1757576444757,344.252353,0.00024,30]
[384829654,1757576446889,344.252353,0.00018948,20]
[384829657,1757576624959,-336.57842673,0.00013598,2]
[384829658,1757576625057,-4507.2284534,0.00013673,2]
[384829659,1757576715535,-1054.99713112,0.00013673,2]
[384829660,1757576725106,-2109.99426224,0.00013673,2]
[384829661,1757576725271,-1578.30524145,0.00013673,2]
[384829662,1757576735113,-4201.71623407,0.00013673,2]
[384829663,1757576735206,-494.09932694,0.00013697,2]
[384829664,1757576735298,-108.37887798,0.00013697,2]
[384829665,1757576735540,-391.62112202,0.00013697,2]
[384829666,1757576799402,188.91646022,0.00013287,2]
[384829674,1757576975527,-3605.78276272,0.00013598,2]
[384829675,1757576975615,-294.50612338,0.00013598,2]
[384829676,1757576975903,-2010.51576758,0.00013673,2]
[384829677,1757576975937,999.0,0.00013287,7]
[384829699,1757577037490,-712.72874558,0.00013673,2]
[384829700,1757577037502,-805.51301562,0.00013673,2]
[384829701,1757577037586,-2434.58438382,0.00013673,2]
[384829702,1757577037596,-500.0,0.00013697,2]
[384829703,1757577037605,-500.0,0.00013697,2]
[384829704,1757577037615,-500.0,0.00013697,2]
[384829705,1757577037624,-500.0,0.00013697,2]
[384829706,1757577037633,-500.0,0.00013697,2]
[384829707,1757577037642,-500.0,0.00013697,2]
[384829708,1757577037651,-500.0,0.00013697,2]
[384829709,1757577037660,-500.0,0.00013697,2]
[384829710,1757577037669,-500.0,0.00013697,2]
[384829711,1757577037678,-500.0,0.00013697,2]
[384829713,1757577037687,-500.0,0.00013697,2]
[384829714,1757577037696,-229.5437121,0.00013697,2]
[384829715,1757577037705,-481.05869864,0.00013698,2]
[384829716,1757577037714,-480.0,0.00013698,2]
[384829717,1757577037723,-480.0,0.00013698,2]
[384829718,1757577037732,-481.36279933,0.00013698,2]
[384829719,1757577037741,-480.9902821,0.00013698,2]
[384829720,1757577037750,-480.0,0.00013698,2]
[384829721,1757577037759,-480.0,0.00013698,2]
[384829722,1757577037768,-480.0,0.00013698,2]
[384829723,1757577037778,-480.0,0.00013698,2]
[384829724,1757577037787,-480.0,0.00013698,2]
[384829725,1757577037797,-491.24173671,0.00013698,2]
[384829727,1757577037806,-480.0,0.00013698,2]
[384829729,1757577037815,-482.6005406,0.00013698,2]
[384829731,1757577037825,-480.3362984,0.00013698,2]
[384829733,1757577037834,-628.88574595,0.00013698,2]
[384829735,1757577037844,-480.20699991,0.00013698,2]
[384829737,1757577037853,-480.0,0.00013698,2]
[384829738,1757577037862,-480.50104287,0.00013698,2]
[384829739,1757577037872,-484.7753887,0.00013698,2]
[384829740,1757577037881,-480.52730567,0.00013698,2]
[384829741,1757577037890,-154.88974356,0.00013698,2]
[384829742,1757577037899,-480.0,0.00013698,2]
[384829743,1757577037909,-480.0,0.00013698,2]
[384829744,1757577037918,-480.0,0.00013698,2]
[384829745,1757577037928,-480.31892802,0.00013698,2]
[384829746,1757577037937,-480.0,0.00013698,2]
[384829747,1757577037946,-480.0,0.00013698,2]
[384829748,1757577037955,-481.41937645,0.00013698,2]
[384829749,1757577037965,-480.0,0.00013698,2]
[384829750,1757577037975,-480.0,0.00013698,2]
[384829751,1757577037984,-480.0,0.00013698,2]
[384829752,1757577037994,-481.26481889,0.00013698,2]
[384829753,1757577038003,-597.76260372,0.00013698,2]
[384829754,1757577038013,-480.0,0.00013698,2]
[384829755,1757577038023,-480.0,0.00013698,2]
[384829757,1757577038032,-480.0,0.00013698,2]
[384829758,1757577038044,-480.0,0.00013698,2]
[384829759,1757577038054,-480.0,0.00013698,2]
[384829760,1757577038063,-480.0,0.00013698,2]
[384829761,1757577038072,-500.0,0.00013698,2]
[384829762,1757577038083,-503.32137237,0.00013698,2]
[384829763,1757577038093,-480.0,0.00013698,2]
[384829764,1757577038102,-483.20035666,0.00013698,2]
[384829765,1757577038112,-485.29132947,0.00013698,2]
[384829766,1757577038123,-480.0,0.00013698,2]
[384829767,1757577038132,-488.95380079,0.00013698,2]
[384829768,1757577038141,-480.0,0.00013698,2]
[384829769,1757577038151,-480.0,0.00013698,2]
[384829770,1757577038160,-480.0,0.00013698,2]
[384829771,1757577038169,-480.0,0.00013698,2]
[384829772,1757577038179,-480.0,0.00013698,2]
[384829773,1757577038188,-480.0,0.00013698,2]
[384829775,1757577038198,-480.0,0.00013698,2]
[384829776,1757577038208,-480.0,0.00013698,2]
[384829777,1757577038217,-480.0,0.00013698,2]
[384829778,1757577038226,-481.73017439,0.00013698,2]
[384829779,1757577038236,-480.0,0.00013698,2]
[384829780,1757577038245,-480.0,0.00013698,2]
[384829781,1757577038254,-486.57929784,0.00013698,2]
[384829782,1757577038264,-480.0,0.00013698,2]
[384829783,1757577038273,-480.0,0.00013698,2]
[384829784,1757577038283,-480.0,0.00013698,2]
[384829785,1757577038293,-480.0,0.00013698,2]
[384829786,1757577038302,-481.79660351,0.00013698,2]
[384829787,1757577038311,-480.0,0.00013698,2]
[384829788,1757577038321,-480.0,0.00013698,2]
[384829789,1757577038330,-480.38440543,0.00013698,2]
[384829790,1757577038340,-480.0,0.00013698,2]
[384829791,1757577038349,-480.0,0.00013698,2]
[384829793,1757577038359,-342.69892464,0.00013698,2]
[384829795,1757577038368,-480.0,0.00013698,2]
[384829797,1757577038377,-480.0,0.00013698,2]
[384829799,1757577038387,-480.0,0.00013698,2]
[384829801,1757577038396,-480.0,0.00013698,2]
[384829802,1757577038405,-480.0,0.00013698,2]
[384829805,1757577038415,-480.0,0.00013698,2]
[384829807,1757577038424,-480.0,0.00013698,2]
[384829809,1757577038434,-281.66542439,0.00013698,2]
[384829811,1757577038444,-480.0,0.00013698,2]
[384829813,1757577038453,-480.0,0.00013698,2]
[384829815,1757577038463,-480.0,0.00013698,2]
[384829817,1757577038472,-481.01703024,0.00013698,2]
[384829819,1757577038481,-480.0,0.00013698,2]
[384829821,1757577038491,-480.0,0.00013698,2]
[384829822,1757577038500,-480.0,0.00013698,2]
[384829824,1757577038509,-480.0,0.00013698,2]
[384829826,1757577038519,-480.0,0.00013698,2]
[384829828,1757577038528,-480.0,0.00013698,2]
[384829843,1757577038659,-486.27974761,0.00013698,2]
[384829846,1757577038671,-481.97441028,0.00013698,2]
[384829848,1757577038681,-481.1706256,0.00013698,2]
[384829850,1757577038691,-480.0,0.00013698,2]
[384829852,1757577038701,-480.0,0.00013698,2]
[384829854,1757577038711,-480.0,0.00013698,2]
[384829856,1757577038720,-480.0,0.00013698,2]
[384829858,1757577038730,-480.0,0.00013698,2]
[384829860,1757577038739,-482.51889707,0.00013698,2]
[384829862,1757577038749,-480.0,0.00013698,2]
[384829864,1757577038758,-480.0,0.00013698,2]
[384829866,1757577038768,-480.0,0.00013698,2]
[384829868,1757577038778,-500.0,0.00013698,2]
[384829870,1757577038787,-500.0,0.00013698,2]
[384829872,1757577038797,-500.0,0.00013698,2]
[384829874,1757577038807,-420.0,0.00013698,2]
[384829877,1757577038817,-374.94673764,0.00013698,2]
[384829879,1757577038827,-480.0,0.00013698,2]
[384829881,1757577038835,-480.0,0.00013698,2]
[384829883,1757577038845,-497.17,0.00013698,2]
[384829885,1757577038855,-443.85,0.00013698,2]
[384829887,1757577038864,-1008.22428736,0.00013698,2]
[384829889,1757577038874,-480.0,0.00013698,2]
[384829891,1757577038884,-480.0,0.00013698,2]
[384829893,1757577038894,-480.0,0.00013698,2]
[384829895,1757577038903,-480.0,0.00013698,2]
[384829897,1757577038913,-480.0,0.00013698,2]
[384829899,1757577038923,-480.0,0.00013698,2]
[384829901,1757577038932,-480.87272331,0.00013698,2]
[384829903,1757577038942,-480.25352931,0.00013698,2]
[384829905,1757577038952,-480.0,0.00013698,2]
[384829907,1757577038962,-480.0,0.00013698,2]
[384829909,1757577038971,-480.0,0.00013698,2]
[384829910,1757577038981,-484.91648899,0.00013698,2]
[384829911,1757577038990,-480.0,0.00013698,2]
[384829912,1757577039000,-480.0,0.00013698,2]
[384829913,1757577039010,-480.0,0.00013698,2]
[384829914,1757577039019,-480.0,0.00013698,2]
[384829915,1757577039028,-500.0,0.00013698,2]
[384829916,1757577039038,-500.0,0.00013698,2]
[384829917,1757577039050,-500.0,0.00013698,2]
[384829918,1757577039060,-482.66156575,0.00013698,2]
[384829919,1757577039071,-500.0,0.00013698,2]
[384829920,1757577039080,-500.0,0.00013698,2]
[384829921,1757577039090,-500.0,0.00013698,2]
[384829922,1757577039099,-480.64668535,0.00013698,2]
[384829923,1757577039109,-480.0,0.00013698,2]
[384829924,1757577039118,-480.0,0.00013698,2]
[384829925,1757577039127,-480.0,0.00013698,2]
[384829926,1757577039137,-480.0,0.00013698,2]
[384829927,1757577039147,-480.0,0.00013698,2]
[384829928,1757577039156,-480.0,0.00013698,2]
[384829929,1757577039165,-480.0,0.00013698,2]
[384829930,1757577039174,-480.0,0.00013698,2]
[384829931,1757577039184,-480.0,0.00013698,2]
[384829932,1757577039194,-480.0,0.00013698,2]
[384829933,1757577039203,-480.0,0.00013698,2]
[384829934,1757577039212,-480.0,0.00013698,2]
[384829935,1757577039222,-480.0,0.00013698,2]
[384829936,1757577039231,-480.0,0.00013698,2]
[384829937,1757577039240,-480.0,0.00013698,2]
[384829938,1757577039250,-480.49916385,0.00013698,2]
[384829939,1757577039259,-480.0,0.00013698,2]
[384829940,1757577039269,-484.82629729,0.00013698,2]
[384829941,1757577039278,-512.29296217,0.00013698,2]
[384829942,1757577039287,-483.7956266,0.00013698,2]
[384829943,1757577039297,-480.0,0.00013698,2]
[384829944,1757577039306,-480.0,0.00013698,2]
[384829945,1757577039315,-480.0,0.00013698,2]
[384829946,1757577039325,-480.0,0.00013698,2]
[384829947,1757577039336,-500.0,0.00013698,2]
[384829948,1757577039345,-500.0,0.00013698,2]
[384829949,1757577039355,-480.0,0.00013698,2]
[384829950,1757577039365,-500.0,0.00013698,2]
[384829951,1757577039374,-500.0,0.00013698,2]
[384829952,1757577039384,-480.0,0.00013698,2]
[384829953,1757577039393,-500.0,0.00013698,2]
[384829954,1757577039403,-500.0,0.00013698,2]
[384829955,1757577039413,-480.0,0.00013698,2]
[384829956,1757577039423,-480.0,0.00013698,2]
[384829957,1757577039432,-480.0,0.00013698,2]
[384829958,1757577039442,-489.26283802,0.00013698,2]
[384829959,1757577039452,-480.0,0.00013698,2]
[384829960,1757577039462,-325.75913177,0.00013698,2]
[384829961,1757577039481,-154.24086823,0.00013698,2]
[384829962,1757577039490,-339.28271726,0.00013698,2]
[384829963,1757577039605,-141.80620461,0.00013698,2]
[384829964,1757577039615,-159.96752793,0.00013698,2]
[384829965,1757577039626,-325.30690725,0.00013698,2]
[384829966,1757577039635,-480.0,0.00013698,2]
[384829967,1757577039645,-364.99309275,0.00013698,2]
[384829983,1757577043417,316.712165,0.00024,30]
[384829984,1757577043776,-115.00690725,0.00013698,2]
[384829985,1757577043786,-255.80737919,0.00013698,2]
[384829986,1757577043795,-462.04926818,0.00013698,2]
[384829987,1757577043806,-17.95073182,0.00013698,2]
[384829988,1757577043815,-307.42313116,0.00013698,2]
[384829989,1757577043827,-172.57686884,0.00013698,2]
[384829990,1757577043836,-481.49817808,0.00013698,2]
[384829991,1757577043845,-480.0,0.00013698,2]
[384829992,1757577043854,-480.0,0.00013698,2]
[384829993,1757577043863,-480.0,0.00013698,2]
[384829994,1757577043871,-480.0,0.00013698,2]
[384829995,1757577043880,-480.0,0.00013698,2]
[384829996,1757577043889,-485.72685461,0.00013698,2]
[384829997,1757577043899,-480.0,0.00013698,2]
[384829998,1757577043908,-292.19809884,0.00013698,2]
[384829999,1757577045804,316.712165,0.00018948,20]
[384830001,1757577046558,-187.80190116,0.00013698,2]
[384830002,1757577046568,-480.0,0.00013698,2]
[384830003,1757577046577,-480.0,0.00013698,2]
[384830004,1757577046587,-480.0,0.00013698,2]
[384830005,1757577046596,-480.0,0.00013698,2]
[384830006,1757577046605,-480.0,0.00013698,2]
[384830007,1757577046615,-225.51335129,0.00013698,2]
[384830008,1757577046624,-485.16218262,0.00013698,2]
[384830009,1757577046633,-480.0,0.00013698,2]
[384830010,1757577046643,-480.0,0.00013698,2]
[384830011,1757577046652,-480.0,0.00013698,2]
[384830012,1757577046661,-480.0,0.00013698,2]
[384830013,1757577046670,-480.0,0.00013698,2]
[384830014,1757577046680,-480.0,0.00013698,2]
[384830015,1757577046689,-506.58140961,0.00013698,2]
[384830016,1757577046698,-480.0,0.00013698,2]
[384830017,1757577046707,-488.75161599,0.00013698,2]
[384830018,1757577046716,-480.0,0.00013698,2]
[384830019,1757577046725,-491.06948895,0.00013698,2]
[384830020,1757577046734,-480.0,0.00013698,2]
[384830021,1757577046744,-480.0,0.00013698,2]
[384830022,1757577046753,-480.0,0.00013698,2]
[384830023,1757577046762,-480.0,0.00013698,2]
[384830024,1757577046771,-480.0,0.00013698,2]
[384830025,1757577046781,-480.0,0.00013698,2]
[384830026,1757577046790,-480.0,0.00013698,2]
[384830027,1757577046799,-480.0,0.00013698,2]
[384830028,1757577046808,-480.0,0.00013698,2]
[384830029,1757577046818,-487.127506,0.00013698,2]
[384830030,1757577046827,-480.0,0.00013698,2]
[384830031,1757577046836,-480.0,0.00013698,2]
[384830032,1757577046846,-480.0,0.00013698,2]
[384830033,1757577046855,-480.0,0.00013698,2]
[384830034,1757577046864,-480.0,0.00013698,2]
[384830035,1757577046873,-480.0,0.00013698,2]
[384830036,1757577046882,-480.0,0.00013698,2]
[384830037,1757577046891,-390.66036853,0.00013698,2]
[384830038,1757577046900,-480.0,0.00013698,2]
[384830039,1757577046909,-488.08484366,0.00013698,2]
[384830040,1757577046918,-485.84088764,0.00013698,2]
[384830041,1757577046927,-480.0,0.00013698,2]
[384830042,1757577046937,-480.0,0.00013698,2]
[384830043,1757577046946,-480.0,0.00013698,2]
[384830044,1757577047112,-480.0,0.00013698,2]
[384830045,1757577047122,-1000.0,0.00013698,2]
[384830046,1757577047132,-480.0,0.00013698,2]
[384830047,1757577047142,-480.0,0.00013698,2]
[384830048,1757577047151,-480.0,0.00013698,2]
[384830049,1757577047161,-539.06059764,0.00013698,2]
[384830050,1757577047170,-480.0,0.00013698,2]
[384830051,1757577047180,-480.0,0.00013698,2]
[384830052,1757577047189,-480.0,0.00013698,2]
[384830053,1757577047199,-480.0,0.00013698,2]
[384830054,1757577047208,-500.0,0.00013698,2]
[384830055,1757577047217,-480.0,0.00013698,2]
[384830056,1757577047227,-481.13815407,0.00013698,2]
[384830057,1757577047236,-480.0,0.00013698,2]
[384830058,1757577047245,-424.07452718,0.00013698,2]
[384830059,1757577047255,-480.0,0.00013698,2]
[384830060,1757577047264,-480.0,0.00013698,2]
[384830061,1757577047274,-318.76622428,0.00013698,2]
[384830062,1757577047283,-480.0,0.00013698,2]
[384830063,1757577047292,-480.0,0.00013698,2]
[384830064,1757577047301,-377.68080254,0.00013698,2]
[384830065,1757577047311,-480.0,0.00013698,2]
[384830066,1757577047320,-480.0,0.00013698,2]
[384830067,1757577047330,-480.0,0.00013698,2]
[384830068,1757577047339,-480.0,0.00013698,2]
[384830069,1757577047348,-480.0,0.00013698,2]
[384830070,1757577047357,-480.0,0.00013698,2]
[384830071,1757577047366,-481.47963594,0.00013698,2]
[384830072,1757577047375,-480.0,0.00013698,2]
[384830073,1757577047385,-480.0,0.00013698,2]
[384830074,1757577047394,-480.0,0.00013698,2]
[384830075,1757577047404,-480.0,0.00013698,2]
[384830076,1757577047413,-480.0,0.00013698,2]
[384830077,1757577047423,-481.66902706,0.00013698,2]
[384830078,1757577047432,-480.0,0.00013698,2]
[384830079,1757577047441,-480.0,0.00013698,2]
[384830080,1757577047450,-480.0,0.00013698,2]
[384830081,1757577047460,-480.0,0.00013698,2]
[384830082,1757577047469,-481.3753523,0.00013698,2]
[384830083,1757577047478,-480.0,0.00013698,2]
[384830084,1757577047487,-480.0,0.00013698,2]
[384830085,1757577047496,-480.0,0.00013698,2]
[384830086,1757577047506,-480.0,0.00013698,2]
[384830087,1757577047515,-480.59449968,0.00013698,2]
[384830088,1757577047524,-480.0,0.00013698,2]
[384830089,1757577047534,-480.0,0.00013698,2]
[384830090,1757577047543,-484.71770905,0.00013698,2]
[384830091,1757577047553,-480.0,0.00013698,2]
[384830092,1757577047562,-480.0,0.00013698,2]
[384830093,1757577047572,-480.0,0.00013698,2]
[384830094,1757577047582,-480.0,0.00013698,2]
[384830095,1757577047592,-488.40661778,0.00013698,2]
[384830096,1757577047603,-153.75813313,0.00013698,2]
[384830097,1757577047613,-480.0,0.00013698,2]
[384830098,1757577047622,-480.0,0.00013698,2]
[384830099,1757577047632,-480.0,0.00013698,2]
[384830100,1757577047641,-480.99351178,0.00013698,2]
[384830101,1757577047651,-480.0,0.00013698,2]
[384830102,1757577047660,-480.0,0.00013698,2]
[384830103,1757577047670,-480.0,0.00013698,2]
[384830104,1757577047680,-480.0,0.00013698,2]
[384830105,1757577047689,-482.38074525,0.00013698,2]
[384830106,1757577047699,-480.0,0.00013698,2]
[384830107,1757577047710,-480.0,0.00013698,2]
[384830108,1757577047719,-480.0,0.00013698,2]
[384830109,1757577047729,-480.0,0.00013698,2]
[384830110,1757577047738,-480.0,0.00013698,2]
[384830111,1757577047748,-480.0,0.00013698,2]
[384830112,1757577047757,-480.0,0.00013698,2]
[384830113,1757577047766,-480.0,0.00013698,2]
[384830114,1757577047775,-480.0,0.00013698,2]
[384830115,1757577047785,-482.7754605,0.00013698,2]
[384830116,1757577047795,-480.0,0.00013698,2]
[384830117,1757577047804,-480.0,0.00013698,2]
[384830118,1757577047814,-480.0,0.00013698,2]
[384830119,1757577047823,-480.0,0.00013698,2]
[384830120,1757577047833,-480.0,0.00013698,2]
[384830121,1757577047842,-480.0,0.00013698,2]
[384830122,1757577047852,-480.0,0.00013698,2]
[384830123,1757577047861,-486.43758985,0.00013698,2]
[384830124,1757577047870,-484.03093063,0.00013698,2]
[384830125,1757577047880,-480.0,0.00013698,2]
[384830126,1757577047889,-482.60911598,0.00013698,2]
[384830127,1757577047898,-480.0,0.00013698,2]
[384830128,1757577047908,-546.03148364,0.00013698,2]
[384830129,1757577047917,-480.0,0.00013698,2]
[384830130,1757577047926,-480.0,0.00013698,2]
[384830131,1757577047935,-480.0,0.00013698,2]
[384830132,1757577047945,-480.0,0.00013698,2]
[384830133,1757577047954,-480.0,0.00013698,2]
[384830134,1757577047963,-480.0,0.00013698,2]
[384830135,1757577047972,-480.0,0.00013698,2]
[384830136,1757577047981,-480.0,0.00013698,2]
[384830137,1757577047991,-487.9665757,0.00013698,2]
[384830138,1757577048000,-480.0,0.00013698,2]
[384830139,1757577048010,-480.0,0.00013698,2]
[384830140,1757577048020,-480.0,0.00013698,2]
[384830141,1757577048029,-482.67695008,0.00013698,2]
[384830142,1757577048039,-480.0,0.00013698,2]
[384830143,1757577048051,-480.0,0.00013698,2]
[384830144,1757577048061,-494.54163418,0.00013698,2]
[384830145,1757577048070,-480.0,0.00013698,2]
[384830146,1757577048080,-480.0,0.00013698,2]
[384830147,1757577048090,-486.2598576,0.00013698,2]
[384830148,1757577048100,-480.0,0.00013698,2]
[384830149,1757577048110,-481.77300712,0.00013698,2]
[384830150,1757577048121,-480.0,0.00013698,2]
[384830151,1757577048131,-480.0,0.00013698,2]
[384830152,1757577048140,-485.05326999,0.00013698,2]
[384830153,1757577048149,-482.51818291,0.00013698,2]
[384830154,1757577048159,-480.0,0.00013698,2]
[384830155,1757577048168,-480.0,0.00013698,2]
[384830156,1757577048178,-1109.85,0.00013698,2]
[384830157,1757577048187,-480.0,0.00013698,2]
[384830158,1757577048196,-482.95110672,0.00013698,2]
[384830159,1757577048206,-480.0,0.00013698,2]
[384830160,1757577048215,-480.0,0.00013698,2]
[384830161,1757577048225,-480.0,0.00013698,2]
[384830162,1757577048234,-480.0,0.00013698,2]
[384830163,1757577048243,-480.0,0.00013698,2]
[384830164,1757577048253,-480.0,0.00013698,2]
[384830165,1757577048263,-480.0,0.00013698,2]
[384830166,1757577048273,-480.0,0.00013698,2]
[384830167,1757577048282,-480.0,0.00013698,2]
[384830168,1757577048291,-480.0,0.00013698,2]
[384830169,1757577048301,-482.5710034,0.00013698,2]
[384830170,1757577048310,-480.0,0.00013698,2]
[384830171,1757577048319,-305.08544119,0.00013698,2]
[384830172,1757577048329,-480.0,0.00013698,2]
[384830173,1757577048338,-480.0,0.00013698,2]
[384830174,1757577048348,-480.0,0.00013698,2]
[384830175,1757577048357,-480.0,0.00013698,2]
[384830176,1757577048367,-480.0,0.00013698,2]
[384830177,1757577048376,-297.77640907,0.00013698,2]
[384830178,1757577048386,-480.0,0.00013698,2]
[384830179,1757577048395,-480.0,0.00013698,2]
[384830180,1757577048404,-480.0,0.00013698,2]
[384830181,1757577048414,-480.0,0.00013698,2]
[384830182,1757577048423,-480.0,0.00013698,2]
[384830183,1757577048433,-480.0,0.00013698,2]
[384830184,1757577048442,-480.0,0.00013698,2]
[384830185,1757577048451,-480.0,0.00013698,2]
[384830186,1757577048461,-480.0,0.00013698,2]
[384830187,1757577048470,-553.23,0.00013698,2]
[384830188,1757577048480,-422.15046608,0.00013698,2]
[384830189,1757577048490,-480.0,0.00013698,2]
[384830190,1757577048500,-480.0,0.00013698,2]
[384830191,1757577048511,-480.0,0.00013698,2]